[Event "*** SCC Grand Prix: Titled Tuesday Blitz"]
[Site "Chess.com"]
[Date "2020.09.29"]
[Round "1"]
[White "XDPS"]
[Black "Alindsay211"]
[Result "1-0"]
[WhiteElo "2762"]
[BlackElo "2386"]
[TimeControl "180+1"]
[EndTime "10:06:35 PDT"]
[Termination "XDPS won by resignation"]

1. d4 {[%clk 0:03:00.9]} 1... Nf6 {[%clk 0:02:53.6]} 2. Bf4 {[%clk 0:02:58.4]}
2... g6 {[%clk 0:02:53.3]} 3. Nc3 {[%clk 0:02:57.8]} 3... Bg7 {[%clk 0:02:51.8]}
4. Qd2 {[%clk 0:02:57.9]} 4... O-O {[%clk 0:02:50.2]} 5. e4 {[%clk 0:02:57.6]}
5... d6 {[%clk 0:02:45.2]} 6. O-O-O {[%clk 0:02:53.1]} 6... Nbd7 {[%clk
0:02:39.3]} 7. h4 {[%clk 0:02:48.8]} 7... c5 {[%clk 0:02:34.5]} 8. d5 {[%clk
0:02:46.6]} 8... Rb8 {[%clk 0:02:28.3]} 9. h5 {[%clk 0:02:34.5]} 9... b5 {[%clk
0:02:15.2]} 10. hxg6 {[%clk 0:02:26.2]} 10... fxg6 {[%clk 0:02:10.8]} 11. f3
{[%clk 0:02:13.9]} 11... b4 {[%clk 0:02:09.1]} 12. Nce2 {[%clk 0:02:12.3]} 12...
Ne5 {[%clk 0:02:04]} 13. Ng3 {[%clk 0:01:50.9]} 13... Qa5 {[%clk 0:01:56.8]} 14.
Kb1 {[%clk 0:01:50.8]} 14... Ba6 {[%clk 0:01:48.8]} 15. Bxe5 {[%clk 0:01:46.6]}
15... dxe5 {[%clk 0:01:48.1]} 16. Nh3 {[%clk 0:01:43.7]} 16... Rb6 {[%clk
0:01:39.8]} 17. Ne2 {[%clk 0:01:25.7]} 17... Rc8 {[%clk 0:01:31.1]} 18. Nc1
{[%clk 0:01:20.3]} 18... c4 {[%clk 0:01:25.2]} 19. Ng5 {[%clk 0:00:59.4]} 19...
c3 {[%clk 0:01:20.4]} 20. Qe3 {[%clk 0:00:49.1]} 20... Bxf1 {[%clk 0:01:11.2]}
21. Rhxf1 {[%clk 0:00:48.7]} 21... Qa4 {[%clk 0:01:06.9]} 22. Qe2 {[%clk
0:00:14]} 22... cxb2 {[%clk 0:01:05.8]} 23. Kxb2 {[%clk 0:00:14]} 23... Qa3+
{[%clk 0:00:58.7]} 24. Kb1 {[%clk 0:00:13.4]} 24... Bh6 {[%clk 0:00:44.6]} 25.
f4 {[%clk 0:00:13.2]} 25... exf4 {[%clk 0:00:41.1]} 26. Nf3 {[%clk 0:00:13.7]}
26... Ng4 {[%clk 0:00:31.4]} 27. Rd3 {[%clk 0:00:14]} 27... Ne3 {[%clk 0:00:30]}
28. Rxa3 {[%clk 0:00:13.6]} 1-0

[Event "*** SCC Grand Prix: Titled Tuesday Blitz"]
[Site "Chess.com"]
[Date "2020.09.29"]
[Round "1"]
[White "SanchezKelvin"]
[Black "anon219"]
[Result "0-1"]
[WhiteElo "2382"]
[BlackElo "2752"]
[TimeControl "180+1"]
[EndTime "10:06:36 PDT"]
[Termination "anon219 won on time"]

1. e4 {[%clk 0:03:00.9]} 1... c5 {[%clk 0:02:59.9]} 2. Nf3 {[%clk 0:03:00.3]}
2... a6 {[%clk 0:02:59.3]} 3. c4 {[%clk 0:02:59.8]} 3... Nc6 {[%clk 0:02:58.6]}
4. d4 {[%clk 0:03:00.1]} 4... cxd4 {[%clk 0:02:59.5]} 5. Nxd4 {[%clk 0:03:00.8]}
5... e5 {[%clk 0:03:00.1]} 6. Nxc6 {[%clk 0:03:00.2]} 6... bxc6 {[%clk
0:02:58.7]} 7. Nc3 {[%clk 0:02:59.9]} 7... Bc5 {[%clk 0:02:58.9]} 8. Bd3 {[%clk
0:02:54.2]} 8... Nf6 {[%clk 0:02:58.9]} 9. O-O {[%clk 0:02:53.9]} 9... O-O
{[%clk 0:02:58.3]} 10. Kh1 {[%clk 0:02:54]} 10... d6 {[%clk 0:02:51.7]} 11. f4
{[%clk 0:02:52.5]} 11... h6 {[%clk 0:02:49.8]} 12. Qe1 {[%clk 0:02:35.4]} 12...
Rb8 {[%clk 0:02:47.2]} 13. b3 {[%clk 0:02:33.1]} 13... Bd4 {[%clk 0:02:45.3]}
14. Bd2 {[%clk 0:02:27.1]} 14... Re8 {[%clk 0:02:37]} 15. f5 {[%clk 0:02:23.1]}
15... d5 {[%clk 0:02:32.3]} 16. Rc1 {[%clk 0:01:43.2]} 16... Bb7 {[%clk
0:02:31.3]} 17. cxd5 {[%clk 0:01:22.6]} 17... cxd5 {[%clk 0:02:21.1]} 18. Nxd5
{[%clk 0:01:06.5]} 18... Nxd5 {[%clk 0:02:18.5]} 19. exd5 {[%clk 0:01:07.4]}
19... Qxd5 {[%clk 0:02:18.8]} 20. Qe2 {[%clk 0:01:02.6]} 20... e4 {[%clk
0:02:09.4]} 21. Bc4 {[%clk 0:01:02.1]} 21... Qd7 {[%clk 0:02:04.2]} 22. Bf4
{[%clk 0:00:59.2]} 22... Rbd8 {[%clk 0:02:04.1]} 23. f6 {[%clk 0:00:56]} 23...
Bxf6 {[%clk 0:02:00]} 24. Bxh6 {[%clk 0:00:54.4]} 24... e3 {[%clk 0:01:58.9]}
25. Bf4 {[%clk 0:00:20.8]} 25... Qh3 {[%clk 0:01:33.1]} 26. Rcd1 {[%clk
0:00:11.2]} 26... Rxd1 {[%clk 0:01:29.2]} 27. Rxd1 {[%clk 0:00:12.1]} 27... Qh4
{[%clk 0:01:26.3]} 28. Bg3 {[%clk 0:00:09.5]} 28... Qe4 {[%clk 0:01:26.4]} 29.
Kg1 {[%clk 0:00:08.9]} 29... a5 {[%clk 0:01:24.4]} 30. Bd3 {[%clk 0:00:08.6]}
30... Qb4 {[%clk 0:01:21.8]} 31. Bb5 {[%clk 0:00:07.9]} 31... Rc8 {[%clk
0:01:17.8]} 32. Bc4 {[%clk 0:00:07.8]} 32... Qb6 {[%clk 0:01:14]} 33. Rf1 {[%clk
0:00:07.3]} 33... Rd8 {[%clk 0:01:11.7]} 34. Be1 {[%clk 0:00:05.5]} 34... a4
{[%clk 0:01:10]} 35. Kh1 {[%clk 0:00:02.2]} 35... a3 {[%clk 0:01:09.6]} 36. Kg1
{[%clk 0:00:01.4]} 36... Qd4 {[%clk 0:01:02.6]} 37. Kh1 {[%clk 0:00:01.6]} 37...
Bd5 {[%clk 0:00:58.5]} 0-1

[Event "*** SCC Grand Prix: Titled Tuesday Blitz"]
[Site "Chess.com"]
[Date "2020.09.29"]
[Round "1"]
[White "juancruzarias"]
[Black "manuellarrea"]
[Result "1-0"]
[WhiteElo "2500"]
[BlackElo "2104"]
[TimeControl "180+1"]
[EndTime "10:06:41 PDT"]
[Termination "juancruzarias won on time"]

1. e4 {[%clk 0:03:00.3]} 1... c5 {[%clk 0:02:59.7]} 2. Nc3 {[%clk 0:02:58.9]}
2... Nc6 {[%clk 0:02:59.5]} 3. Bb5 {[%clk 0:02:59.2]} 3... Nd4 {[%clk
0:02:57.9]} 4. Bc4 {[%clk 0:02:59.5]} 4... e6 {[%clk 0:02:57]} 5. Nf3 {[%clk
0:02:59.8]} 5... Nf6 {[%clk 0:02:54.8]} 6. O-O {[%clk 0:03:00]} 6... a6 {[%clk
0:02:53.7]} 7. a4 {[%clk 0:02:58.8]} 7... d5 {[%clk 0:02:52]} 8. exd5 {[%clk
0:02:55.2]} 8... exd5 {[%clk 0:02:50.9]} 9. Ba2 {[%clk 0:02:55.3]} 9... Bg4
{[%clk 0:02:47.1]} 10. Qe1+ {[%clk 0:02:55.7]} 10... Be7 {[%clk 0:02:43.9]} 11.
Nxd4 {[%clk 0:02:55.9]} 11... cxd4 {[%clk 0:02:42.9]} 12. Ne2 {[%clk 0:02:56.8]}
12... Qb6 {[%clk 0:02:26.3]} 13. Nf4 {[%clk 0:02:44.3]} 13... Be6 {[%clk
0:02:13.8]} 14. d3 {[%clk 0:02:23.2]} 14... O-O {[%clk 0:02:06.5]} 15. Qe2
{[%clk 0:02:16.2]} 15... Rfe8 {[%clk 0:02:02.6]} 16. Nxe6 {[%clk 0:02:16.3]}
16... fxe6 {[%clk 0:01:59.9]} 17. Re1 {[%clk 0:02:16.5]} 17... Bb4 {[%clk
0:01:59.2]} 18. Rf1 {[%clk 0:02:11.8]} 18... Rac8 {[%clk 0:01:54.5]} 19. Bb3
{[%clk 0:02:11.6]} 19... Qd6 {[%clk 0:01:38.4]} 20. Bg5 {[%clk 0:02:06.6]} 20...
Kh8 {[%clk 0:01:23.7]} 21. f4 {[%clk 0:02:04.3]} 21... Ba5 {[%clk 0:01:16.2]}
22. Rf3 {[%clk 0:01:51.4]} 22... Re7 {[%clk 0:01:15.2]} 23. Rh3 {[%clk
0:01:47.9]} 23... Rce8 {[%clk 0:01:12.5]} 24. Rf1 {[%clk 0:01:47.1]} 24... Qb4
{[%clk 0:00:57.1]} 25. Qf2 {[%clk 0:01:41.7]} 25... b5 {[%clk 0:00:31.7]} 26.
axb5 {[%clk 0:01:39.9]} 26... axb5 {[%clk 0:00:26.1]} 27. Qh4 {[%clk 0:01:39.7]}
27... Rf7 {[%clk 0:00:20.5]} 28. Bxf6 {[%clk 0:01:19.9]} 28... gxf6 {[%clk
0:00:19.4]} 29. f5 {[%clk 0:01:20]} 29... Qd6 {[%clk 0:00:11.3]} 30. fxe6 {[%clk
0:01:19]} 30... Rxe6 {[%clk 0:00:10.6]} 31. Qh5 {[%clk 0:01:17]} 31... Rfe7
{[%clk 0:00:06.6]} 32. Bxd5 {[%clk 0:01:09.8]} 32... Re5 {[%clk 0:00:05.6]} 33.
Qh6 {[%clk 0:01:05.8]} 33... Qxd5 {[%clk 0:00:04.6]} 34. Qxf6+ {[%clk
0:00:56.9]} 34... Kg8 {[%clk 0:00:02.9]} 35. Rg3+ {[%clk 0:00:54.8]} 1-0

[Event "*** SCC Grand Prix: Titled Tuesday Blitz"]
[Site "Chess.com"]
[Date "2020.09.29"]
[Round "1"]
[White "penguingm1"]
[Black "Chesstrainer1"]
[Result "1-0"]
[WhiteElo "2892"]
[BlackElo "2427"]
[TimeControl "180+1"]
[EndTime "10:06:42 PDT"]
[Termination "penguingm1 won on time"]

1. d4 {[%clk 0:02:37.6]} 1... Nf6 {[%clk 0:02:55.3]} 2. c4 {[%clk 0:02:37.7]}
2... g6 {[%clk 0:02:55.4]} 3. f3 {[%clk 0:02:37.8]} 3... Bg7 {[%clk 0:02:53.8]}
4. e4 {[%clk 0:02:38.1]} 4... O-O {[%clk 0:02:51.8]} 5. Nc3 {[%clk 0:02:38.8]}
5... d6 {[%clk 0:02:51.9]} 6. Nge2 {[%clk 0:02:38.7]} 6... a6 {[%clk 0:02:49.1]}
7. Be3 {[%clk 0:02:34.7]} 7... Nbd7 {[%clk 0:02:48.8]} 8. Qd2 {[%clk 0:02:34.8]}
8... b5 {[%clk 0:02:41.3]} 9. Ng3 {[%clk 0:02:34.6]} 9... c6 {[%clk 0:02:30.8]}
10. h4 {[%clk 0:02:32.2]} 10... e5 {[%clk 0:02:30.3]} 11. d5 {[%clk 0:02:26.2]}
11... cxd5 {[%clk 0:02:12.4]} 12. cxd5 {[%clk 0:02:25.8]} 12... Nb6 {[%clk
0:02:06]} 13. h5 {[%clk 0:02:25.4]} 13... b4 {[%clk 0:02:05.6]} 14. Nd1 {[%clk
0:02:25.4]} 14... a5 {[%clk 0:02:05.7]} 15. Bh6 {[%clk 0:02:22.8]} 15... Ra7
{[%clk 0:01:53.5]} 16. Be2 {[%clk 0:02:16.6]} 16... Qe7 {[%clk 0:01:43.7]} 17.
Rc1 {[%clk 0:02:04.8]} 17... Rc7 {[%clk 0:01:34.8]} 18. Be3 {[%clk 0:01:41.8]}
18... Rxc1 {[%clk 0:01:18.7]} 19. Qxc1 {[%clk 0:01:42.7]} 19... Na4 {[%clk
0:01:08]} 20. b3 {[%clk 0:01:33.4]} 20... Nc5 {[%clk 0:01:07.6]} 21. Nb2 {[%clk
0:01:33.2]} 21... Bd7 {[%clk 0:00:51.9]} 22. Nc4 {[%clk 0:01:26.8]} 22... Rc8
{[%clk 0:00:48.9]} 23. Qd2 {[%clk 0:01:25.7]} 23... a4 {[%clk 0:00:18.6]} 24.
bxa4 {[%clk 0:01:15.2]} 24... Bxa4 {[%clk 0:00:11.2]} 25. Qxb4 {[%clk
0:01:15.2]} 25... Nfd7 {[%clk 0:00:10.8]} 26. hxg6 {[%clk 0:01:10.8]} 26... hxg6
{[%clk 0:00:09.1]} 27. Qd2 {[%clk 0:01:03]} 27... Rb8 {[%clk 0:00:09.7]} 28. Kf2
{[%clk 0:00:59.7]} 28... Bb5 {[%clk 0:00:07.1]} 29. Rb1 {[%clk 0:00:52.5]} 29...
Bf6 {[%clk 0:00:07.3]} 30. Na5 {[%clk 0:00:50.5]} 30... Bxe2 {[%clk 0:00:04.7]}
31. Nc6 {[%clk 0:00:49.2]} 31... Rxb1 {[%clk 0:00:01.4]} 32. Nxe7+ {[%clk
0:00:49.3]} 32... Bxe7 {[%clk 0:00:02.3]} 33. Nxe2 {[%clk 0:00:49.9]} 33... Ra1
{[%clk 0:00:01]} 34. Nc3 {[%clk 0:00:46.8]} 1-0

[Event "*** SCC Grand Prix: Titled Tuesday Blitz"]
[Site "Chess.com"]
[Date "2020.09.29"]
[Round "1"]
[White "RestartingChess"]
[Black "Larina_Marija"]
[Result "1-0"]
[WhiteElo "2525"]
[BlackElo "2189"]
[TimeControl "180+1"]
[EndTime "10:06:42 PDT"]
[Termination "RestartingChess won by resignation"]

1. e4 {[%clk 0:03:00.9]} 1... c6 {[%clk 0:02:59.4]} 2. d4 {[%clk 0:03:01.1]}
2... d5 {[%clk 0:02:59.5]} 3. exd5 {[%clk 0:03:02]} 3... cxd5 {[%clk 0:02:59.4]}
4. c4 {[%clk 0:03:02.9]} 4... Nf6 {[%clk 0:02:51]} 5. Nc3 {[%clk 0:03:02.9]}
5... g6 {[%clk 0:02:45.6]} 6. Nf3 {[%clk 0:03:03.3]} 6... Bg7 {[%clk 0:02:45.3]}
7. Be2 {[%clk 0:03:04]} 7... O-O {[%clk 0:02:45.3]} 8. O-O {[%clk 0:03:04.6]}
8... Nc6 {[%clk 0:02:44.5]} 9. h3 {[%clk 0:03:04.4]} 9... h6 {[%clk 0:02:28.5]}
10. Be3 {[%clk 0:02:51.2]} 10... Be6 {[%clk 0:02:28.2]} 11. b3 {[%clk
0:02:48.7]} 11... Rc8 {[%clk 0:02:28]} 12. Rc1 {[%clk 0:02:48.5]} 12... a6
{[%clk 0:02:23.2]} 13. Qd2 {[%clk 0:02:43.9]} 13... Qd7 {[%clk 0:02:22.4]} 14.
Bxh6 {[%clk 0:02:42.1]} 14... dxc4 {[%clk 0:02:12.9]} 15. Bxg7 {[%clk
0:02:37.5]} 15... Kxg7 {[%clk 0:02:13.8]} 16. bxc4 {[%clk 0:02:37.8]} 16... Rfd8
{[%clk 0:02:12.8]} 17. d5 {[%clk 0:02:28.4]} 17... Bxh3 {[%clk 0:02:10.3]} 18.
dxc6 {[%clk 0:02:20.3]} 18... Qxc6 {[%clk 0:02:08.5]} 19. Qg5 {[%clk 0:02:17.7]}
19... Be6 {[%clk 0:01:58.2]} 20. Rfd1 {[%clk 0:02:15.3]} 20... Rh8 {[%clk
0:01:56.9]} 21. Nd5 {[%clk 0:02:11.3]} 21... Rh5 {[%clk 0:01:52.3]} 22. Qe3
{[%clk 0:01:56.9]} 22... Rch8 {[%clk 0:01:39.2]} 23. Kf1 {[%clk 0:01:44.5]}
23... Rh1+ {[%clk 0:01:20.4]} 24. Ng1 {[%clk 0:01:44.9]} 24... Qd6 {[%clk
0:01:12]} 25. Nf4 {[%clk 0:01:35.4]} 25... Qc7 {[%clk 0:01:01.3]} 26. Rd4 {[%clk
0:01:06.4]} 26... g5 {[%clk 0:01:00]} 27. Nxe6+ {[%clk 0:01:04.4]} 27... fxe6
{[%clk 0:01:00.9]} 28. Qxg5+ {[%clk 0:01:04.8]} 28... Kf7 {[%clk 0:01:00.4]} 29.
Qf4 {[%clk 0:00:58.3]} 29... e5 {[%clk 0:00:59.1]} 30. Qg3 {[%clk 0:00:49]}
30... Rg8 {[%clk 0:00:56.9]} 31. Bg4 {[%clk 0:00:47.6]} 31... Qb8 {[%clk
0:00:23.7]} 32. Re1 {[%clk 0:00:38]} 32... exd4 {[%clk 0:00:22.6]} 33. Be6+
{[%clk 0:00:38.4]} 33... Kf8 {[%clk 0:00:19.7]} 34. Qxb8+ {[%clk 0:00:39.1]}
34... Kg7 {[%clk 0:00:18.6]} 35. Qg3+ {[%clk 0:00:39.2]} 35... Kf8 {[%clk
0:00:18.2]} 36. Bxg8 {[%clk 0:00:39.7]} 36... Nxg8 {[%clk 0:00:17.9]} 37. Rd1
{[%clk 0:00:39.8]} 1-0

[Event "*** SCC Grand Prix: Titled Tuesday Blitz"]
[Site "Chess.com"]
[Date "2020.09.29"]
[Round "1"]
[White "Miss_JJ20"]
[Black "Konavets"]
[Result "0-1"]
[WhiteElo "2451"]
[BlackElo "2983"]
[TimeControl "180+1"]
[EndTime "10:06:44 PDT"]
[Termination "Konavets won by checkmate"]

1. d4 {[%clk 0:02:59]} 1... Nf6 {[%clk 0:02:57.1]} 2. Nf3 {[%clk 0:02:56.8]}
2... d5 {[%clk 0:02:56.6]} 3. c4 {[%clk 0:02:53.5]} 3... dxc4 {[%clk 0:02:57.5]}
4. e3 {[%clk 0:02:53.2]} 4... e6 {[%clk 0:02:57.3]} 5. Bxc4 {[%clk 0:02:53.2]}
5... c5 {[%clk 0:02:57.2]} 6. Nc3 {[%clk 0:02:52.1]} 6... a6 {[%clk 0:02:57.4]}
7. Bb3 {[%clk 0:02:47.8]} 7... b5 {[%clk 0:02:52.4]} 8. a4 {[%clk 0:02:28.6]}
8... c4 {[%clk 0:02:49.2]} 9. Bc2 {[%clk 0:02:28.4]} 9... b4 {[%clk 0:02:47.7]}
10. Ne2 {[%clk 0:02:10.7]} 10... Bb7 {[%clk 0:02:47.6]} 11. Ng3 {[%clk
0:02:09.2]} 11... Nc6 {[%clk 0:02:45.2]} 12. O-O {[%clk 0:02:04.9]} 12... Be7
{[%clk 0:02:43.7]} 13. e4 {[%clk 0:01:58.8]} 13... Rc8 {[%clk 0:02:41.4]} 14. h4
{[%clk 0:01:56.4]} 14... b3 {[%clk 0:02:28.2]} 15. Bb1 {[%clk 0:01:54.9]} 15...
Nb4 {[%clk 0:02:28.8]} 16. h5 {[%clk 0:01:47.6]} 16... h6 {[%clk 0:02:27.1]} 17.
Re1 {[%clk 0:01:38.5]} 17... O-O {[%clk 0:02:05.4]} 18. d5 {[%clk 0:01:19.6]}
18... exd5 {[%clk 0:02:04.2]} 19. e5 {[%clk 0:01:20.2]} 19... Ne4 {[%clk
0:02:04.6]} 20. Nf5 {[%clk 0:01:16.6]} 20... Bc5 {[%clk 0:01:58.4]} 21. N3d4
{[%clk 0:01:15.5]} 21... Kh8 {[%clk 0:01:42.1]} 22. Qg4 {[%clk 0:00:58.3]} 22...
Rg8 {[%clk 0:01:41]} 23. Qf4 {[%clk 0:00:54.3]} 23... Qg5 {[%clk 0:01:38]} 24.
Qf3 {[%clk 0:00:52.1]} 24... Qd8 {[%clk 0:01:20.9]} 25. Qf4 {[%clk 0:00:52]}
25... Qb6 {[%clk 0:01:19.9]} 26. a5 {[%clk 0:00:51]} 26... Qc7 {[%clk
0:01:10.1]} 27. Nxh6 {[%clk 0:00:45.1]} 27... Bxd4 {[%clk 0:01:01.6]} 28. Nxf7+
{[%clk 0:00:43.2]} 28... Qxf7 {[%clk 0:01:01.2]} 29. Qxf7 {[%clk 0:00:44.1]}
29... Bxf2+ {[%clk 0:01:01.3]} 30. Kf1 {[%clk 0:00:16.2]} 30... Rcf8 {[%clk
0:01:00.3]} 31. Qg6 {[%clk 0:00:16.4]} 31... Bd4+ {[%clk 0:00:50.4]} 32. Ke2
{[%clk 0:00:12.1]} 32... Rf2+ {[%clk 0:00:49.7]} 33. Kd1 {[%clk 0:00:12.5]}
33... Nd3 {[%clk 0:00:42.4]} 34. h6 {[%clk 0:00:09.5]} 34... Nxb2+ {[%clk
0:00:36.1]} 35. Bxb2 {[%clk 0:00:08]} 35... Rd2+ {[%clk 0:00:37]} 36. Kc1 {[%clk
0:00:06.4]} 36... Bxb2# {[%clk 0:00:37.9]} 0-1

[Event "*** SCC Grand Prix: Titled Tuesday Blitz"]
[Site "Chess.com"]
[Date "2020.09.29"]
[Round "1"]
[White "MarceloPlaya"]
[Black "AleksibFan"]
[Result "0-1"]
[WhiteElo "2295"]
[BlackElo "2602"]
[TimeControl "180+1"]
[EndTime "10:06:44 PDT"]
[Termination "AleksibFan won by resignation"]

1. e4 {[%clk 0:02:51.5]} 1... d5 {[%clk 0:02:59.4]} 2. exd5 {[%clk 0:02:50.9]}
2... Qxd5 {[%clk 0:03:00.3]} 3. Nc3 {[%clk 0:02:50]} 3... Qd6 {[%clk 0:03:00.2]}
4. d4 {[%clk 0:02:46.7]} 4... Nf6 {[%clk 0:02:59.9]} 5. Nge2 {[%clk 0:02:41.9]}
5... Bg4 {[%clk 0:02:56.1]} 6. f3 {[%clk 0:02:36.2]} 6... Bh5 {[%clk 0:02:54.6]}
7. Bf4 {[%clk 0:02:35.9]} 7... Qd7 {[%clk 0:02:54.4]} 8. Qd2 {[%clk 0:02:35.2]}
8... e6 {[%clk 0:02:54.1]} 9. O-O-O {[%clk 0:02:34.3]} 9... Bb4 {[%clk
0:02:25.5]} 10. Be5 {[%clk 0:02:20.2]} 10... Nc6 {[%clk 0:02:15.9]} 11. Qf4
{[%clk 0:02:01.5]} 11... Be7 {[%clk 0:01:18.7]} 12. Bxc7 {[%clk 0:01:51.4]}
12... Rc8 {[%clk 0:01:15.5]} 13. Be5 {[%clk 0:01:49.3]} 13... Bg6 {[%clk
0:01:06.6]} 14. g4 {[%clk 0:01:38.5]} 14... Nb4 {[%clk 0:01:04.3]} 15. Bxf6
{[%clk 0:01:16.2]} 15... gxf6 {[%clk 0:00:40.3]} 16. Rd2 {[%clk 0:01:12.8]}
16... a6 {[%clk 0:00:25.7]} 17. Ne4 {[%clk 0:01:02.7]} 17... Qa4 {[%clk
0:00:15.8]} 18. a3 {[%clk 0:00:37.1]} 18... Rxc2+ {[%clk 0:00:13.7]} 19. Kd1
{[%clk 0:00:20.6]} 19... Rxd2+ {[%clk 0:00:09.7]} 20. Kxd2 {[%clk 0:00:20.6]}
20... Qc2+ {[%clk 0:00:09.4]} 21. Ke3 {[%clk 0:00:18.8]} 21... Nd5+ {[%clk
0:00:09.3]} 22. Kf2 {[%clk 0:00:17.2]} 22... Nxf4 {[%clk 0:00:10.2]} 23. h4
{[%clk 0:00:16.5]} 23... Bxe4 {[%clk 0:00:10]} 24. fxe4 {[%clk 0:00:15.9]} 24...
Nxe2 {[%clk 0:00:10]} 0-1

[Event "*** SCC Grand Prix: Titled Tuesday Blitz"]
[Site "Chess.com"]
[Date "2020.09.29"]
[Round "1"]
[White "IMDT02"]
[Black "Morshynska"]
[Result "1-0"]
[WhiteElo "2533"]
[BlackElo "2201"]
[TimeControl "180+1"]
[EndTime "10:06:49 PDT"]
[Termination "IMDT02 won on time"]

1. d4 {[%clk 0:02:59.6]} 1... d5 {[%clk 0:02:59.5]} 2. c4 {[%clk 0:02:59.4]}
2... c6 {[%clk 0:03:00.1]} 3. cxd5 {[%clk 0:02:58.8]} 3... cxd5 {[%clk 0:03:01]}
4. Nc3 {[%clk 0:02:59.7]} 4... Nf6 {[%clk 0:03:01.7]} 5. Bf4 {[%clk 0:03:00]}
5... Nc6 {[%clk 0:02:59.3]} 6. e3 {[%clk 0:03:00.3]} 6... a6 {[%clk 0:02:58.6]}
7. Bd3 {[%clk 0:03:00]} 7... Bg4 {[%clk 0:02:56.5]} 8. Nf3 {[%clk 0:02:59.1]}
8... e6 {[%clk 0:02:54.1]} 9. O-O {[%clk 0:02:58.4]} 9... Bd6 {[%clk 0:02:47.8]}
10. Bg3 {[%clk 0:02:54.5]} 10... O-O {[%clk 0:02:45.3]} 11. Qb3 {[%clk
0:02:51.5]} 11... Na5 {[%clk 0:02:36.6]} 12. Qc2 {[%clk 0:02:51.1]} 12... Rc8
{[%clk 0:02:33.4]} 13. Ne5 {[%clk 0:02:50.5]} 13... Bh5 {[%clk 0:02:25.6]} 14.
a3 {[%clk 0:02:46.3]} 14... b5 {[%clk 0:02:22.7]} 15. f4 {[%clk 0:02:39.7]}
15... Nc4 {[%clk 0:02:14]} 16. Nxc4 {[%clk 0:02:35.3]} 16... bxc4 {[%clk
0:02:14.5]} 17. Be2 {[%clk 0:02:35.8]} 17... Bg6 {[%clk 0:02:05.3]} 18. Qd2
{[%clk 0:02:35.8]} 18... Qa5 {[%clk 0:01:53.4]} 19. Bf3 {[%clk 0:02:33.6]} 19...
Bc7 {[%clk 0:01:30.6]} 20. Rfe1 {[%clk 0:02:20.8]} 20... Rb8 {[%clk 0:01:21.8]}
21. Qf2 {[%clk 0:02:21]} 21... Rb3 {[%clk 0:01:11.9]} 22. e4 {[%clk 0:02:20.3]}
22... Rfb8 {[%clk 0:00:58.6]} 23. f5 {[%clk 0:01:56.7]} 23... Rxb2 {[%clk
0:00:55.1]} 24. Bxc7 {[%clk 0:01:51.5]} 24... Qxc7 {[%clk 0:00:51]} 25. Qe3
{[%clk 0:01:52]} 25... dxe4 {[%clk 0:00:40.4]} 26. fxg6 {[%clk 0:01:51.6]} 26...
exf3 {[%clk 0:00:39.5]} 27. gxf7+ {[%clk 0:01:51.5]} 27... Qxf7 {[%clk 0:00:36]}
28. Qxf3 {[%clk 0:01:52]} 28... Nd5 {[%clk 0:00:14.2]} 29. Na4 {[%clk
0:01:51.7]} 29... Qxf3 {[%clk 0:00:10.7]} 30. gxf3 {[%clk 0:01:52.6]} 30... Rd2
{[%clk 0:00:10.8]} 31. Nc5 {[%clk 0:01:51.8]} 31... Rbb2 {[%clk 0:00:09.5]} 32.
Rab1 {[%clk 0:01:37.1]} 32... Rg2+ {[%clk 0:00:08.8]} 33. Kh1 {[%clk 0:01:37.6]}
33... Rxh2+ {[%clk 0:00:09]} 34. Kg1 {[%clk 0:01:38.4]} 34... Rhg2+ {[%clk
0:00:08]} 35. Kh1 {[%clk 0:01:38.7]} 35... Rh2+ {[%clk 0:00:07.2]} 36. Kg1
{[%clk 0:01:38.9]} 36... Rbg2+ {[%clk 0:00:06.6]} 37. Kf1 {[%clk 0:01:39.4]}
37... Rf2+ {[%clk 0:00:06.3]} 38. Kg1 {[%clk 0:01:39.5]} 38... Nf4 {[%clk
0:00:05.2]} 39. Rb8+ {[%clk 0:01:30.6]} 39... Kf7 {[%clk 0:00:04.1]} 40. Rb7+
{[%clk 0:01:28.6]} 40... Kg6 {[%clk 0:00:04.2]} 41. Rxe6+ {[%clk 0:01:24.6]}
41... Kg5 {[%clk 0:00:04.1]} 42. Rxg7+ {[%clk 0:01:23.2]} 42... Kf5 {[%clk
0:00:01.7]} 43. Rf7+ {[%clk 0:01:04.7]} 1-0